fUST/lending_fUST_20241213
["ID","MTS","AMOUNT","RATE_DAILY","PERIOD"]
[345113779,1734024782298,429.0,0.0002,3]
[345113780,1734024782605,429.0,0.0002,3]
[345113781,1734024826708,184.0,0.000255,120]
[345113782,1734024993399,500.0,0.000255,60]
[345113783,1734025233359,201.392372,0.00013973,2]
[345113872,1734025832417,-201.392372,0.00020447,2]
[345113875,1734025832427,-201.5906806,0.00022954,2]
[345113876,1734025832437,-160.0,0.00023536,2]
[345113878,1734025832447,-300.0,0.00023747,2]
[345113880,1734025832456,-300.0,0.00023747,2]
[345113882,1734025832466,-6045.22348944,0.00023748,2]
[345113884,1734025832481,-1286.98759465,0.00023748,2]
[345113887,1734025832497,-5128.9810077,0.00023748,2]
[345114367,1734025838423,-987.7284508,0.00022912,2]
[345114369,1734025838434,-7612.55369441,0.00023748,2]
[345114371,1734025838444,-1415.31998734,0.00024041,2]
[345114372,1734025838454,-10996.1091416,0.00024051,2]
[345114373,1734025838464,-250.0,0.00024141,2]
[345114374,1734025838474,-169.851756,0.0002456,2]
[345114375,1734025838484,-5287.50425739,0.00024629,2]
[345114376,1734025838501,-5287.5042574,0.00024686,2]
[345114377,1734025838512,-387.012,0.000247,2]
[345114378,1734025838522,-485.81136783,0.00024818,2]
[345114379,1734025838532,-1415.31998728,0.00024819,2]
[345114380,1734025838542,-151.22903713,0.000249,2]
[345114381,1734025838551,-93.70666193,0.00025,2]
[345114382,1734025838613,-1106.68316439,0.00025,2]
[345114509,1734025846402,-41639.92142585,0.00025,2]
[345115088,1734026558525,181.253134,0.00013973,2]
[345115153,1734027032843,-181.253134,0.00020447,2]
[345115154,1734027032854,-879.38409921,0.00022,2]
[345115166,1734027038491,-121.72590079,0.00022,2]
[345115167,1734027038500,-160.0,0.00024567,2]
[345115168,1734027038509,-370.863,0.000247,2]
[345115169,1734027038518,-641.0,0.00025,2]
[345115171,1734027038527,-300.0,0.00025166,2]
[345115173,1734027038536,-300.0,0.00025166,2]
[345115175,1734027038546,-185.0,0.00025167,3]
[345115176,1734027038554,-185.0,0.00025167,3]
[345115177,1734027038562,-185.0,0.00025167,3]
[345115178,1734027038574,-185.0,0.00025167,3]
[345115179,1734027038582,-185.0,0.00025167,3]
[345115180,1734027038591,-185.0,0.00025167,3]
[345115181,1734027038599,-185.0,0.00025167,3]
[345115182,1734027038606,-185.0,0.00025167,3]
[345115183,1734027038614,-185.0,0.00025167,3]
[345115184,1734027038622,-185.0,0.00025167,3]
[345115185,1734027038631,-185.0,0.00025167,3]
[345115186,1734027038640,-185.0,0.00025167,3]
[345115187,1734027038649,-185.0,0.00025167,3]
[345115188,1734027038658,-185.0,0.00025167,3]
[345115189,1734027038666,-185.0,0.00025167,3]
[345115190,1734027038675,-185.0,0.00025167,3]
[345115191,1734027038684,-185.0,0.00025167,3]
[345115192,1734027038693,-185.0,0.00025167,3]
[345115193,1734027038701,-185.0,0.00025167,3]
[345115194,1734027038710,-185.0,0.00025167,3]
[345115195,1734027038719,-185.0,0.00025167,3]
[345115196,1734027038728,-185.0,0.00025167,3]
[345115197,1734027038737,-185.0,0.00025167,3]
[345115198,1734027038746,-185.0,0.00025167,3]
[345115199,1734027038754,-185.0,0.00025167,3]
[345115200,1734027038763,-185.0,0.00025167,3]
[345115201,1734027038772,-185.0,0.00025167,3]
[345115202,1734027038783,-185.0,0.00025167,3]
[345115203,1734027038792,-185.0,0.00025167,3]
[345115204,1734027038801,-185.0,0.00025167,3]
[345115205,1734027038811,-185.0,0.00025167,3]
[345115206,1734027038822,-185.0,0.00025167,3]
[345115207,1734027038831,-185.0,0.00025167,3]
[345115208,1734027038839,-185.0,0.00025167,3]
[345115209,1734027038848,-185.0,0.00025167,3]
[345115210,1734027038856,-185.0,0.00025167,3]
[345115211,1734027038865,-185.0,0.00025167,3]
[345115212,1734027038875,-185.0,0.00025167,3]
[345115213,1734027038884,-185.0,0.00025167,3]
[345115214,1734027038893,-185.0,0.00025167,3]
[345115215,1734027038902,-153.68486276,0.00025167,3]
[345115216,1734027038914,-31.31513724,0.00025167,3]
[345115217,1734027038923,-185.0,0.00025167,3]
[345115218,1734027038933,-185.0,0.00025167,3]
[345115219,1734027038942,-185.0,0.00025167,3]
[345115220,1734027038951,-185.0,0.00025167,3]
[345115221,1734027038961,-185.0,0.00025167,3]
[345115222,1734027038971,-185.0,0.00025167,3]
[345115223,1734027038980,-185.0,0.00025167,3]
[345115224,1734027038990,-185.0,0.00025167,3]
[345115225,1734027038999,-185.0,0.00025167,3]
[345115226,1734027039008,-185.0,0.00025167,3]
[345115227,1734027039020,-185.0,0.00025167,3]
[345115228,1734027039029,-185.0,0.00025167,3]
[345115229,1734027039039,-185.0,0.00025167,3]
[345115230,1734027039048,-245.0,0.00025167,3]
[345115231,1734027039058,-351.3853278,0.000252,2]
[345115232,1734027039067,-351.3853278,0.000252,2]
[345115233,1734027039076,-187.706,0.00025205,9]
[345115234,1734027039085,-200.3573167,0.000253,2]
[345115235,1734027039094,-1126.33453917,0.000254,2]
[345115236,1734027039104,-185.0,0.00025426,3]
[345115237,1734027039112,-970.40532519,0.000255,2]
[345115244,1734027040560,-262.04783769,0.000255,2]
[345115262,1734027046444,-185.0,0.00024905,2]
[345115263,1734027046454,-185.0,0.00024905,2]
[345115264,1734027046463,-185.0,0.00024905,2]
[345115265,1734027046473,-185.0,0.00024905,2]
[345115266,1734027046483,-185.0,0.00024905,2]
[345115267,1734027046492,-245.0,0.00024905,2]
[345115268,1734027046502,-15824.52248515,0.000255,2]
[345115269,1734027046512,-180.16944859,0.000255,2]
[345115270,1734027046523,-2000.0,0.000255,2]
[345115271,1734027046533,-351.3853278,0.000255,2]
[345115272,1734027046544,-17346.78419984,0.000255,2]
[345115273,1734027463272,163.12782,0.00013973,2]
[345115274,1734027841952,1204.0,0.0002,3]
[345115275,1734027842288,1201.0,0.0002,3]
[345115276,1734027842584,1201.0,0.0002,3]
[345115277,1734027842868,1201.0,0.0002,3]
[345115300,1734028117538,3068.11642657,0.0001999,2]
[345115432,1734028238848,-163.12782,0.00020447,2]
[345115434,1734028238858,-355.49,0.0002422,2]
[345115436,1734028238868,-300.0,0.00024999,2]
[345115438,1734028238878,-300.0,0.00024999,2]
[345115440,1734028238893,-3567.88,0.00025,4]
[345115443,1734028238903,-7208.20654204,0.00025,7]
[345115445,1734028238913,-187.707,0.00025165,9]
[345115448,1734028238922,-493.6082962,0.000252,2]
[345115463,1734028239065,-156.8055432,0.00025245,4]
[345115464,1734028239074,-185.0,0.0002537,3]
[345115465,1734028239083,-8528.48782401,0.000255,2]
[345115466,1734028239093,-180.16944859,0.000255,2]
[345115467,1734028239102,-65114.91866932,0.000255,2]
[345115548,1734028240749,-35683.50586766,0.000255,2]
[345115549,1734028240758,-2370.0,0.00025691,2]
[345115551,1734028240767,-212.8417378,0.00025781,2]
[345115552,1734028240778,-416.72471832,0.00025849,2]
[345115553,1734028240787,-169.851756,0.00025945,2]
[345115554,1734028240796,-3405.42239432,0.00025964,2]
[345115555,1734028240811,-25483.29774512,0.00025964,2]
[345115556,1734028240821,-79893.61055975,0.00025997,5]
[345115557,1734028240831,-151.0,0.00025997,7]
[345115558,1734028240842,-97657.94438295,0.00025998,5]
[345115625,1734028246903,-1790.9,0.00025998,5]
[345115628,1734028246915,-20319.99868051,0.00025998,5]
[345115699,1734028386409,163.12782,0.00013973,2]
[345115701,1734028563000,806.0,0.0002,3]
[345115702,1734028563315,804.0,0.0002,3]
[345115703,1734028563593,804.0,0.0002,3]
[345115704,1734028563886,804.0,0.0002,3]
[345115726,1734029323932,163.12782,0.00013973,2]
[345115847,1734029438108,-163.12782,0.00021661,2]
[345115849,1734029438118,-155.49070438,0.00023,10]
[345115851,1734029438127,-340.596,0.000247,2]
[345115853,1734029438137,-570.00892383,0.00025664,2]
[345115855,1734029438147,-185.0,0.00025682,3]
[345115857,1734029438156,-185.0,0.00025935,3]
[345115859,1734029438166,-300.0,0.00025997,2]
[345115861,1734029438176,-12.58974829,0.00025997,2]
[345115863,1734029438188,-287.41025171,0.00025997,2]
[345115865,1734029438198,-16835.07749833,0.00025998,5]
[345115866,1734029438207,-3093.39124996,0.00025998,3]
[345115869,1734029438219,-45026.34806788,0.00025998,3]
[345115895,1734029443455,-4053.60793304,0.00025998,3]
[345115899,1734029443592,-22943.19172662,0.00025998,3]
[345115901,1734029443602,-17621.36827337,0.00025999,2]
[345115931,1734029443914,-391.28273935,0.00025999,2]
[345115980,1734029445771,-1164.079014,0.00025999,2]
[345115993,1734029445900,-15671.99999998,0.00025999,2]
[345116023,1734030281736,163.12782,0.00013973,2]
[345116056,1734030559809,180.47786103,0.0002,2]
[345116263,1734030638139,-163.12782,0.00022759,2]
[345116266,1734030638149,-171.107649,0.00023916,2]
[345116270,1734030638158,-161.083261,0.00024141,2]
[345116272,1734030638168,-195.6817817,0.000246,2]
[345116273,1734030638178,-200.85878676,0.000247,2]
[345116296,1734030640271,-175.96321324,0.000247,2]
[345116297,1734030640281,-300.0,0.00024746,2]
[345116298,1734030640291,-300.0,0.00024746,2]
[345116299,1734030640301,-24900.0,0.00024747,2]
[345116300,1734030640310,-252.44830633,0.00025,2]
[345116301,1734030640319,-161.083261,0.00025034,2]
[345116302,1734030640329,-184.645,0.00025091,2]
[345116303,1734030640338,-3980.86021943,0.00025301,2]
[345116309,1734030643584,-2599.47179318,0.00025301,2]
[345116337,1734030646470,-2561.44490368,0.00025301,2]
[345116338,1734030646484,-7334.84553642,0.00025499,2]
[345116339,1734030646532,-1806.93137987,0.00025499,2]
[345116340,1734030646547,-601.86862013,0.00025556,15]
[345116341,1734030646565,-160.49137987,0.00025556,15]
[345116342,1734030646579,-153.0,0.00025578,2]
[345116343,1734030646593,-151.377,0.00025691,2]
[345116344,1734030646607,-482.18711865,0.00025691,2]
[345116388,1734031321783,163.12782,0.00013973,2]
[345116508,1734031832629,-169.058494,0.00023473,2]
[345116510,1734031832639,-300.0,0.00023499,2]
[345116512,1734031832649,-300.0,0.00023499,2]
[345116514,1734031832658,-1986.8799285,0.000235,2]
[345116517,1734031832682,-22893.1200715,0.000235,2]
[345116519,1734031832692,-181.801877,0.00023689,2]
[345116521,1734031832702,-400.0,0.00023799,2]
[345116523,1734031832711,-5094.9390601,0.00023958,2]
[345116525,1734031832721,-4801.1831296,0.00024058,2]
[345116527,1734031832731,-161.667814,0.00024058,2]
[345116529,1734031832742,-163.12782,0.00024224,2]
[345116531,1734031832752,-195.6817817,0.000246,2]
[345116533,1734031832762,-400.0,0.00024679,2]
[345116535,1734031832772,-383.998,0.000247,2]
[345116537,1734031832782,-5094.93906004,0.00024748,2]
[345116539,1734031832792,-176.36,0.00024837,2]
[345116541,1734031832802,-181.801877,0.00024857,2]
[345116543,1734031832812,-322.6513776,0.00024909,2]
[345116546,1734031832822,-36752.73276567,0.00025,2]
[345116548,1734031832831,-6828.13798886,0.00025,2]
[345116549,1734031832841,-451.58548,0.00025466,2]
[345116551,1734031832851,-420.0,0.00025497,2]
[345116554,1734031832860,-5094.93906004,0.00025538,2]
[345116555,1734031832870,-400.0,0.0002556,2]
[345116557,1734031832880,-278.42318704,0.0002566,2]
[345116560,1734031832890,-254.57681296,0.0002566,2]
[345116561,1734031832900,-303.22371568,0.0002566,2]
[345116563,1734031832912,-2066.77628432,0.0002566,2]
[345116565,1734031832921,-230.00748107,0.0002566,2]
[345116665,1734031838853,-1939.99251893,0.0002566,2]
[345116666,1734031838863,-451.58548,0.00025704,2]
[345116667,1734031838873,-185.0,0.00025803,3]
[345116668,1734031838883,-420.0,0.00025849,2]
[345116669,1734031838897,-1325.56523127,0.00025898,2]
[345116670,1734031838907,-1325.56523126,0.00025899,2]
[345116671,1734031838917,-1325.56523126,0.00025899,2]
[345116672,1734031838926,-1325.56523126,0.000259,2]
[345116673,1734031838936,-500.0,0.000259,19]
[345116674,1734031838946,-1325.56523126,0.000259,2]
[345116675,1734031838956,-451.58548,0.00025942,2]
[345116676,1734031838966,-287.078262,0.00025998,7]
[345116677,1734031838976,-287.078262,0.00025998,7]
[345116678,1734031838986,-500.0,0.00025998,2]
[345116679,1734031838996,-500.0,0.00025998,2]
[345116680,1734031839012,-500.0,0.00025998,2]
[345116681,1734031839026,-500.0,0.00025998,2]
[345116682,1734031839036,-500.0,0.00025998,2]
[345116684,1734031839047,-500.0,0.00025998,2]
[345116685,1734031839057,-500.0,0.00025998,2]
[345116686,1734031839068,-500.0,0.00025998,2]
[345116687,1734031839078,-500.0,0.00025998,2]
[345116688,1734031839088,-500.0,0.00025998,2]
[345116689,1734031839098,-500.0,0.00025998,2]
[345116690,1734031839108,-500.0,0.00025998,2]
[345116691,1734031839118,-500.0,0.00025998,2]
[345116692,1734031839128,-500.0,0.00025998,2]
[345116693,1734031839138,-500.0,0.00025998,2]
[345116694,1734031839147,-500.0,0.00025998,2]
[345116695,1734031839157,-500.0,0.00025998,2]
[345116696,1734031839166,-500.0,0.00025998,2]
[345116697,1734031839176,-500.0,0.00025998,2]
[345116698,1734031839186,-500.0,0.00025998,2]
[345116699,1734031839196,-450.0018028,0.00025998,2]
[345116700,1734031839206,-500.0,0.00025998,2]
[345116701,1734031839216,-240.05531174,0.00025998,2]
[345116702,1734031839226,-269.91432831,0.00025998,2]
[345116703,1734031839236,-433.91544334,0.00025998,2]
[345116704,1734031839246,-500.0,0.00025998,2]
[345116705,1734031839259,-500.0,0.00025998,2]
[345116706,1734031839277,-500.0,0.00025998,2]
[345116707,1734031839287,-377.76930349,0.00025998,2]
[345116708,1734031839296,-500.0,0.00025998,2]
[345116709,1734031839306,-500.0,0.00025998,2]
[345116710,1734031839316,-314.0470906,0.00025998,2]
[345116711,1734031839325,-500.0,0.00025998,2]
[345116712,1734031839335,-500.0,0.00025998,2]
[345116713,1734031839345,-500.0,0.00025998,2]
[345116714,1734031839358,-418.97140873,0.00025998,2]
[345116715,1734031839370,-500.0,0.00025998,2]
[345116716,1734031839380,-500.0,0.00025998,2]
[345116717,1734031839390,-552.50239048,0.00025998,2]
[345116718,1734031839402,-500.0,0.00025998,2]
[345116719,1734031839412,-500.0,0.00025998,2]
[345116720,1734031839423,-500.0,0.00025998,2]
[345116721,1734031839440,-500.0,0.00025998,2]
[345116722,1734031839450,-500.0,0.00025998,2]
[345116723,1734031839460,-500.0,0.00025998,2]
[345116724,1734031839470,-500.0,0.00025998,2]
[345116725,1734031839479,-500.0,0.00025998,2]
[345116726,1734031839489,-500.0,0.00025998,2]
[345116727,1734031839500,-500.0,0.00025998,2]
[345116728,1734031839510,-500.0,0.00025998,2]
[345116729,1734031839520,-500.0,0.00025998,2]
[345116730,1734031839529,-500.0,0.00025998,2]
[345116731,1734031839539,-500.0,0.00025998,2]
[345116732,1734031839551,-500.0,0.00025998,2]
[345116733,1734031839561,-500.0,0.00025998,2]
[345116734,1734031839571,-500.0,0.00025998,2]
[345116735,1734031839581,-500.0,0.00025998,2]
[345116736,1734031839592,-500.0,0.00025998,2]
[345116739,1734031839716,-500.0,0.00025998,2]
[345116741,1734031839734,-500.0,0.00025998,2]
[345116742,1734031839744,-500.0,0.00025998,2]
[345116743,1734031839757,-347.79272287,0.00025998,2]
[345116744,1734031839767,-500.0,0.00025998,2]
[345116745,1734031839777,-151.0,0.00025999,7]
[345116746,1734031839790,-212.99116,0.00025999,7]
[345116749,1734031839801,-281.941757,0.00025999,7]
[345116751,1734031839811,-281.941757,0.00025999,7]
[345116753,1734031839823,-266.15544477,0.00025999,9]
[345116755,1734031839836,-385.020858,0.00025999,7]
[345116757,1734031839846,-385.020858,0.00025999,7]
[345116759,1734031839856,-151.0,0.00025999,7]
[345116761,1734031839866,-151.0,0.00025999,7]
[345116763,1734031839876,-151.0,0.00025999,7]
[345116765,1734031839886,-151.0,0.00025999,7]
[345116767,1734031839897,-151.0,0.00025999,7]
[345116769,1734031839907,-151.0,0.00025999,7]
[345116771,1734031839917,-313.040942,0.00025999,7]
[345116773,1734031839928,-313.040942,0.00025999,7]
[345116775,1734031839938,-151.0,0.00025999,7]
[345116777,1734031839947,-151.0,0.00025999,7]
[345116779,1734031839957,-152.89163,0.00025999,7]
[345116780,1734031839968,-151.0,0.00025999,7]
[345116781,1734031839978,-151.0,0.00025999,7]
[345116782,1734031839988,-500.0,0.00025999,9]
[345116783,1734031839998,-836.473995,0.00025999,7]
[345116784,1734031840011,-836.473995,0.00025999,7]
[345116785,1734031840021,-244.84,0.00025999,7]
[345116786,1734031840031,-816.045319,0.00025999,7]
[345116787,1734031840041,-816.045319,0.00025999,7]
[345116788,1734031840052,-348.296483,0.00025999,7]
[345116789,1734031840062,-348.296483,0.00025999,7]
[345116790,1734031840071,-221.063679,0.00025999,7]
[345116791,1734031840080,-221.063679,0.00025999,7]
[345116792,1734031840090,-151.0,0.00025999,7]
[345116793,1734031840100,-686.772404,0.00025999,7]
[345116794,1734031840110,-686.772404,0.00025999,7]
[345116795,1734031840120,-287.078262,0.00025999,7]
[345116796,1734031840130,-287.078262,0.00025999,7]
[345116797,1734031840140,-337.98522196,0.00025999,2]
[345116798,1734031840150,-336.44936127,0.00025999,2]
[345116799,1734031840159,-500.0,0.00025999,2]
[345116800,1734031840169,-161.37215846,0.00025999,2]
[345116801,1734031840179,-500.0,0.00025999,2]
[345116802,1734031840189,-116967.00046402,0.00025999,2]
[345116803,1734031840203,-83.8770071,0.00025999,2]
[345116804,1734031840214,-762.36764662,0.00026,2]
[345116805,1734031840224,-539.10622166,0.00026,2]
[345116806,1734031840481,-381.11826221,0.00026,2]
[345116811,1734031840546,-1347.63288837,0.00026,2]
[345116812,1734031840556,-2000.0,0.00026,2]
[345116814,1734031840567,-7465.77081542,0.00026,2]
[345116816,1734031840577,-29246.39629621,0.00026,60]
[345116842,1734031843391,-1062.072195,0.000259,2]
[345116843,1734031843401,-151.0,0.00025998,7]
[345116844,1734031843411,-151.0,0.00025998,7]
[345116845,1734031843420,-151.0,0.00025999,7]
[345116846,1734031843431,-151.0,0.00025999,7]
[345116847,1734031843441,-6862.37999084,0.00026,60]
[345116848,1734031843453,-635.07944737,0.00026,60]
[345116849,1734031843464,-967.12969587,0.00026,60]
[345116884,1734031846303,-1310.03050639,0.00026,60]
[345116885,1734031846315,-3879.7670205,0.00026,60]
[345116886,1734031846354,-1395.20432844,0.00026,60]
[345116887,1734031846365,-426.970012,0.00026,60]
[345116892,1734032443274,163.12782,0.00013973,2]
[345116943,1734033036569,-1000.0,0.00021588,2]
[345116944,1734033036579,-316.50480597,0.00021825,2]
[345116945,1734033036589,-181.801877,0.00024332,2]
[345116946,1734033036598,-367.884,0.000247,2]
[345116947,1734033036608,-256.649956,0.00024795,2]
[345116948,1734033036618,-300.0,0.0002552,2]
[345116949,1734033036627,-300.0,0.0002552,2]
[345116950,1734033036637,-167.095,0.00025521,2]
[345116951,1734033036651,-2160.0,0.00025521,2]
[345116952,1734033036660,-2368.0,0.00025521,2]
[345116953,1734033036671,-150.534,0.00025521,2]
[345116954,1734033036685,-1000.0,0.0002569,2]
[345116955,1734033036695,-1000.0,0.00025708,2]
[345116956,1734033036704,-256.649956,0.00025712,2]
[345116957,1734033036714,-1000.0,0.00025771,2]
[345116958,1734033036724,-166.0,0.00025817,3]
[345116959,1734033036734,-166.0,0.00025817,3]
[345116960,1734033036743,-166.0,0.00025817,3]
[345116961,1734033036754,-166.0,0.00025817,3]
[345116962,1734033036766,-166.0,0.00025817,3]
[345116963,1734033036776,-166.0,0.00025817,3]
[345116964,1734033036785,-166.0,0.00025817,3]
[345116965,1734033036795,-166.0,0.00025817,3]
[345116966,1734033036804,-166.0,0.00025817,3]
[345116967,1734033036814,-166.0,0.00025817,3]
[345116968,1734033036823,-174.0,0.00025817,3]
[345116969,1734033036833,-702.613808,0.0002589,2]
[345116970,1734033036843,-3174.0,0.000259,2]
[345116971,1734033036853,-1000.0,0.000259,4]
[345116972,1734033036862,-252.45494086,0.00025999,9]
[345116973,1734033036872,-52771.35888411,0.00026,60]
[345116974,1734033036881,-28338.0430064,0.00026,30]
[345116975,1734033036890,-500.0,0.00026,20]
[345116976,1734033036905,-185.0,0.0002616,3]
[345116977,1734033036915,-185.0,0.0002616,3]
[345116978,1734033036925,-185.0,0.0002616,3]
[345116979,1734033036935,-185.0,0.0002616,3]
[345116980,1734033036945,-185.0,0.0002616,3]
[345116981,1734033036955,-185.0,0.0002616,3]
[345116982,1734033036964,-185.0,0.0002616,3]
[345116983,1734033036975,-185.0,0.0002616,3]
[345116984,1734033036985,-185.0,0.0002616,3]
[345116985,1734033036994,-185.0,0.0002616,3]
[345116986,1734033037003,-185.0,0.0002616,3]
[345116987,1734033037013,-185.0,0.0002616,3]
[345116988,1734033037023,-185.0,0.0002616,3]
[345116989,1734033037033,-185.0,0.0002616,3]
[345116990,1734033037043,-185.0,0.0002616,3]
[345116991,1734033037051,-185.0,0.0002616,3]
[345116992,1734033037060,-185.0,0.0002616,3]
[345116993,1734033037070,-185.0,0.0002616,3]
[345116994,1734033037080,-185.0,0.0002616,3]
[345116995,1734033037212,-185.0,0.0002616,3]
[345116996,1734033037223,-185.0,0.0002616,3]
[345116997,1734033037233,-185.0,0.0002616,3]
[345116998,1734033037243,-185.0,0.0002616,3]
[345116999,1734033037253,-185.0,0.0002616,3]
[345117000,1734033037263,-185.0,0.0002616,3]
[345117001,1734033037272,-185.0,0.0002616,3]
[345117002,1734033037282,-185.0,0.0002616,3]
[345117003,1734033037292,-185.0,0.0002616,3]
[345117004,1734033037302,-185.0,0.0002616,3]
[345117005,1734033037311,-185.0,0.0002616,3]
[345117006,1734033037321,-185.0,0.0002616,3]
[345117007,1734033037331,-185.0,0.0002616,3]
[345117008,1734033037344,-185.0,0.0002616,3]
[345117009,1734033037354,-185.0,0.0002616,3]
[345117010,1734033037362,-185.0,0.0002616,3]
[345117011,1734033037372,-166.0,0.00026241,3]
[345117012,1734033037381,-163.12782,0.00026274,2]
[345117013,1734033037391,-500.0,0.00026397,7]
[345117014,1734033037407,-500.0,0.00026397,7]
[345117015,1734033037418,-500.0,0.00026397,7]
[345117016,1734033037428,-500.0,0.00026397,7]
[345117017,1734033037438,-500.0,0.00026397,7]
[345117018,1734033037447,-500.0,0.00026397,7]
[345117019,1734033037456,-500.0,0.00026397,7]
[345117020,1734033037464,-500.0,0.00026397,7]
[345117021,1734033037473,-500.0,0.00026397,7]
[345117022,1734033037483,-500.0,0.00026397,7]
[345117023,1734033037493,-475.77,0.00026397,7]
[345117024,1734033037502,-301.056986,0.00026458,2]
[345117025,1734033037512,-2000.0,0.000265,4]
[345117026,1734033037522,-161.0,0.00026614,3]
[345117027,1734033037531,-256.649956,0.0002663,2]
[345117028,1734033037541,-301.056986,0.00026706,2]
[345117029,1734033037551,-435.5367887,0.0002674,2]
[345117030,1734033037560,-157.530822,0.0002674,2]
[345117031,1734033037570,-331.8319441,0.0002674,2]
[345117032,1734033037579,-165.0,0.00026856,3]
[345117033,1734033037589,-5000.0,0.00026922,7]
[345117034,1734033037598,-301.056986,0.00026953,2]
[345117035,1734033037608,-302.25101748,0.00027,2]
[345117036,1734033037618,-320.0,0.00027,120]
[345117038,1734033037628,-2000.0,0.00027,4]
[345117040,1734033037638,-10005.19786126,0.00027,7]
[345117042,1734033037651,-685.7367169,0.00027031,2]
[345117044,1734033037662,-168.0,0.00027097,3]
[345117046,1734033037672,-151.0,0.000271,7]
[345117048,1734033037684,-151.0,0.000271,7]
[345117050,1734033037693,-151.0,0.00027133,7]
[345117052,1734033037703,-151.0,0.00027133,7]
[345117054,1734033037713,-213.21904542,0.00027197,2]
[345117056,1734033037723,-153.08547817,0.00027197,2]
[345117058,1734033037734,-550.00020031,0.00027197,2]
[345117060,1734033037744,-159.32393815,0.00027197,2]
[345117062,1734033037754,-201.56078784,0.00027197,2]
[345117064,1734033037764,-500.0,0.00027197,2]
[345117066,1734033037774,-500.0,0.00027197,2]
[345117069,1734033037784,-384.77927228,0.00027197,2]
[345117072,1734033037794,-283.61137672,0.00027197,2]
[345117075,1734033037803,-752.826596,0.00027197,7]
[345117078,1734033037813,-752.826596,0.00027197,7]
[345117080,1734033037822,-151.0,0.00027197,7]
[345117082,1734033037831,-151.0,0.00027197,7]
[345117084,1734033037841,-618.095163,0.00027197,7]
[345117085,1734033037851,-618.095163,0.00027197,7]
[345117089,1734033037860,-151.0,0.00027197,7]
[345117091,1734033037870,-151.0,0.00027197,7]
[345117092,1734033037879,-151.0,0.00027197,7]
[345117095,1734033037887,-151.0,0.00027197,7]
[345117096,1734033037899,-284.593902,0.00027197,7]
[345117097,1734033037907,-151.0,0.00027197,7]
[345117098,1734033037914,-313.466834,0.00027197,7]
[345117099,1734033037921,-313.466834,0.00027197,7]
[345117100,1734033037928,-346.518772,0.00027197,7]
[345117101,1734033037936,-346.518772,0.00027197,7]
[345117102,1734033037943,-177.857792,0.00027197,7]
[345117103,1734033037949,-229.66261,0.00027197,7]
[345117104,1734033037956,-281.736848,0.00027197,7]
[345117105,1734033037963,-281.736848,0.00027197,7]
[345117106,1734033037970,-229.66261,0.00027197,7]
[345117107,1734033037978,-198.957311,0.00027197,7]
[345117108,1734033037985,-734.440787,0.00027197,7]
[345117109,1734033037992,-198.957311,0.00027197,7]
[345117110,1734033037999,-734.440787,0.00027197,7]
[345117111,1734033038006,-61320.35137495,0.00027198,5]
[345117112,1734033038014,-151.0,0.00027198,7]
[345117113,1734033038020,-151.0,0.00027198,7]
[345117114,1734033038027,-151.0,0.00027198,7]
[345117115,1734033038035,-151.0,0.00027198,7]